bitfinex/quotes_ETHUSD_20250702
["timestamp","ask_amount","ask_price","bid_price","bid_amount"]
[1751449575290,0.97704146,2455.5,2455.4,18.568]
[1751449577729,0.97704146,2455.5,2455.4,10.0]
[1751449578026,0.97704146,2455.5,2455.4,18.568]
[1751449578626,0.97704146,2455.5,2455.4,10.0]
[1751449578801,0.97704146,2455.5,2455.4,18.568]
[1751449579126,0.97704146,2455.5,2455.3,0.2032]
[1751449579436,0.2132,2455.7,2455.3,0.2032]
[1751449579437,1.43491514,2455.7,2455.4,8.568]
[1751449579601,0.97776176,2455.6,2455.4,8.568]
[1751449579932,1.43491514,2455.7,2455.4,8.568]
[1751449579933,0.97776176,2455.5,2455.4,8.568]
[1751449582438,0.97776176,2455.5,2455.4,8.588]
[1751449582844,0.97776176,2455.5,2455.4,8.587]
[1751449583640,0.97776176,2455.5,2455.4,8.586]
[1751449584039,0.97776176,2455.5,2455.4,0.02]
[1751449584245,2.56250945,2455.5,2455.4,0.02]
[1751449584545,3.78422459,2455.5,2455.4,0.02]
[1751449585643,3.78422459,2455.5,2455.4,2.015]
[1751449592121,8.94010204,2455.5,2455.4,2.015]
[1751449593258,10.16088251,2455.5,2455.4,2.015]
[1751449593854,8.92953985,2455.5,2455.4,2.015]
[1751449595453,2.55194726,2455.5,2455.4,2.015]
[1751449600367,2.73753625,2455.5,2455.4,2.015]
[1751449600527,0.96719957,2455.5,2455.4,2.8256]
[1751449601030,0.2132,2455.6,2455.4,2.8256]
[1751449605762,0.976507,2455.5,2455.4,2.8256]
[1751449605936,0.976507,2455.5,2455.4,3.10816]
[1751449615296,0.01,2455.6,2455.4,3.10816]
[1751449615841,0.97664794,2455.5,2455.4,3.10816]
[1751449616154,0.01,2455.6,2455.4,3.10816]
[1751449616589,0.01,2455.5,2455.4,3.10816]
[1751449619372,0.01,2455.5,2455.4,13.10816]
[1751449619916,0.01,2455.5,2455.4,19.88236]
[1751449633837,0.01,2455.5,2455.4,10.2232]
[1751449634117,0.01,2455.5,2455.4,18.584]
[1751449636520,0.01,2455.5,2455.4,10.02]
[1751449636695,0.01,2455.5,2455.4,18.584]
[1751449637446,0.01,2455.5,2455.4,10.02]
[1751449637793,0.01,2455.5,2455.4,18.584]
[1751449641248,0.7701,2455.5,2455.4,12.015]
[1751449641400,0.7701,2455.5,2455.4,8.584]
[1751449641737,1.74758762,2455.5,2455.4,8.584]
[1751449642513,1.74758762,2455.5,2455.4,2.015]
[1751449642719,1.74758762,2455.5,2455.4,8.584]
[1751449644720,1.74758762,2455.5,2455.4,2.014]
[1751449644946,1.74758762,2455.5,2455.4,8.583]
[1751449645497,2.29758762,2455.5,2455.4,2.014]
[1751449645698,3.28913937,2455.5,2455.4,2.014]
[1751449646122,4.5094767,2455.5,2455.4,2.014]
[1751449646302,3.28913937,2455.5,2455.4,2.014]
[1751449646918,4.5094767,2455.5,2455.4,2.014]
[1751449647240,3.28913937,2455.5,2455.4,2.014]
[1751449648739,4.5094767,2455.5,2455.4,0.02]
[1751449653347,3.28913937,2455.5,2455.4,0.02]
[1751449662354,4.5094767,2455.5,2455.4,0.02]
[1751449668241,3.28913937,2455.5,2455.4,0.02]
[1751449669145,2.31165175,2455.5,2455.4,0.02]
[1751449669345,3.28835833,2455.5,2455.4,0.02]
[1751449672949,4.92028352,2455.5,2455.4,0.02]
[1751449675168,4.92128548,2455.5,2455.4,0.02]
[1751449675864,3.28936029,2455.5,2455.4,0.02]
[1751449677260,5.73724807,2455.5,2455.4,0.02]
[1751449684768,3.28936029,2455.5,2455.4,0.02]
[1751449684982,5.73724807,2455.5,2455.4,0.02]
[1751449685166,3.28936029,2455.5,2455.4,0.02]
[1751449686377,5.73724807,2455.5,2455.4,0.02]
[1751449686870,3.28936029,2455.5,2455.4,0.02]
[1751449687077,5.73724807,2455.5,2455.4,0.02]
[1751449687272,3.28936029,2455.5,2455.4,0.02]
[1751449687441,5.73724807,2455.5,2455.4,0.02]
[1751449689675,4.97714807,2455.5,2455.4,0.02]
[1751449692749,0.98770854,2455.5,2455.4,0.02]
[1751449693082,2.82091317,2455.5,2455.4,0.02]
[1751449694599,2.82091317,2455.5,2455.4,0.7779]
[1751449694897,1.19090854,2455.5,2455.4,0.7779]
[1751449697303,2.41320004,2455.5,2455.4,0.7779]
[1751449697502,2.41320004,2455.5,2455.4,1.05509]
[1751449700103,1.19085599,2455.5,2455.4,1.05509]
[1751449710417,1.19085599,2455.5,2455.4,3.04809]
[1751449712314,1.74085599,2455.5,2455.4,0.02]
[1751449712569,3.79332597,2455.5,2455.4,0.02]
[1751449717348,2.57125599,2455.5,2455.4,0.02]
[1751449717830,7.03731823,2455.5,2455.4,0.02]
[1751449718219,8.66732286,2455.5,2455.4,0.02]
[1751449719035,9.78084392,2455.5,2455.4,0.02]
[1751449721139,8.15083929,2455.5,2455.4,0.02]
[1751449722443,5.31378673,2455.5,2455.4,0.02]
[1751449722943,3.36986567,2455.5,2455.4,0.02]
[1751449724938,2.39220968,2455.5,2455.4,0.02]
[1751449725142,0.7632,2455.5,2455.4,0.02]
[1751449725721,3.3694657,2455.5,2455.4,0.02]
[1751449726415,1.19054964,2455.5,2455.4,0.02]
[1751449726643,1.19054964,2455.5,2455.4,0.824]
[1751449726844,2.41216978,2455.5,2455.4,1.5631]
[1751449727013,1.19054964,2455.5,2455.4,1.5631]
[1751449728412,0.98734964,2455.5,2455.4,1.5631]
[1751449730834,0.98734964,2455.5,2455.4,11.5631]
[1751449731146,0.98734964,2455.5,2455.4,11.7663]
[1751449733561,0.98734964,2455.5,2455.4,20.3253]
[1751449735559,0.98734964,2455.5,2455.4,20.1221]
[1751449735745,0.98734964,2455.5,2455.4,19.383]
[1751449736160,0.98675403,2455.5,2455.4,19.383]
[1751449736344,0.98675403,2455.5,2455.4,10.824]
[1751449736547,0.98675403,2455.5,2455.4,19.383]
[1751449740262,0.01,2455.5,2455.4,21.95915098]
[1751449740465,0.01,2455.5,2455.4,21.95715098]
[1751449740647,0.98664328,2455.5,2455.4,19.381]
[1751449742061,0.01,2455.5,2455.4,19.381]
[1751449742255,0.98652327,2455.5,2455.4,19.381]
[1751449742537,0.01,2455.5,2455.4,19.381]
[1751449743047,0.98649704,2455.5,2455.4,19.381]
[1751449743246,0.9864707,2455.5,2455.4,19.381]
[1751449743447,0.98648454,2455.5,2455.4,19.381]
[1751449743668,0.98647339,2455.5,2455.4,2.012]
[1751449743869,1.53647339,2455.5,2455.4,2.012]
[1751449744066,1.53647339,2455.5,2455.4,0.02]
[1751449744235,1.80421498,2455.5,2455.4,8.577]
[1751449744441,1.71421498,2455.5,2455.4,8.577]
[1751449744646,1.72421498,2455.5,2455.4,8.577]
[1751449745252,1.72421498,2455.5,2455.4,8.527]
[1751449747466,1.44647339,2455.5,2455.4,8.527]
[1751449747770,1.44647339,2455.5,2455.4,8.557]
[1751449748075,0.89647339,2455.5,2455.4,9.313]
[1751449755472,0.89647339,2455.5,2455.4,0.756]
[1751449755776,0.89647339,2455.5,2455.4,1.992]
[1751449755964,1.18643498,2455.5,2455.4,8.557]
[1751449756273,1.18643498,2455.5,2455.4,8.577]
[1751449756472,1.18643498,2455.5,2455.4,6.585]
[1751449756677,1.18643498,2455.5,2455.4,0.02]
[1751449756844,2.40737752,2455.5,2455.4,6.585]
[1751449759782,2.40737752,2455.5,2455.4,0.02]
[1751449759975,2.95737752,2455.5,2455.4,0.02]
[1751449763266,2.66741593,2455.5,2455.4,0.02]
[1751449773191,1.44647339,2455.5,2455.4,0.02]
[1751449777496,3.84868945,2455.5,2455.4,0.02]
[1751449785794,3.94018804,2455.5,2455.4,0.02]
[1751449786595,2.31127198,2455.5,2455.4,0.02]
[1751449786900,2.78873659,2455.5,2455.4,0.02]
[1751449788288,4.41863425,2455.5,2455.4,0.02]
[1751449789585,4.41863425,2455.5,2455.4,0.0189]
[1751449793986,2.78873659,2455.5,2455.4,0.0189]
[1751449799889,5.23211069,2455.5,2455.4,0.0189]
[1751449804525,4.45881069,2455.5,2455.4,0.0189]
[1751449804893,4.45771069,2455.5,2455.4,0.0189]
[1751449809216,3.98024608,2455.5,2455.4,0.0189]
[1751449810706,1.53687198,2455.5,2455.4,0.0189]
[1751449814527,3.16684486,2455.5,2455.4,0.0189]
[1751449816305,3.16684486,2455.5,2455.4,0.7801]
[1751449816557,1.53687198,2455.5,2455.4,0.7801]
[1751449817041,3.16684486,2455.5,2455.4,0.7801]
[1751449818719,3.16684486,2455.5,2455.4,0.0189]
[1751449819424,1.53687198,2455.5,2455.4,0.0189]
[1751449820012,3.16668783,2455.5,2455.4,0.0189]
[1751449841622,3.16668783,2455.5,2455.4,0.7935]
[1751449851255,1.53687198,2455.5,2455.4,0.7935]
[1751449855788,2.75953958,2455.5,2455.4,0.7935]
[1751449858297,1.53687198,2455.5,2455.4,0.7935]
[1751449860304,2.75941974,2455.5,2455.4,0.7935]
[1751449860463,1.53687198,2455.5,2455.4,0.7935]
[1751449864705,1.53687198,2455.5,2455.4,0.0189]
[1751449866261,2.75948862,2455.5,2455.4,0.0189]
[1751449866467,1.53687198,2455.5,2455.4,0.0189]
[1751449871399,1.85554076,2455.5,2455.4,0.0189]
[1751449871611,4.28955661,2455.5,2455.4,0.0189]
[1751449871819,5.10311486,2455.5,2455.4,0.0189]
[1751449872017,2.65974076,2455.5,2455.4,0.0189]
[1751449872181,0.55,2455.2,2454.5,0.8176]
[1751449872379,0.7532,2454.6,2454.5,0.02]
[1751449872587,1.73117198,2454.6,2454.5,0.02]
[1751449877421,0.7532,2454.6,2454.5,0.02]
[1751449877911,0.7532,2454.6,2454.5,6.40118199]
[1751449882121,0.7532,2454.6,2454.5,0.02]
[1751449894357,0.7532,2454.6,2454.5,6.40118199]
[1751449895149,0.7532,2454.6,2454.5,12.96318199]
[1751449896233,1.72890224,2454.6,2454.5,12.96318199]
[1751449897731,1.72890224,2454.6,2454.5,6.582]
[1751449897934,1.72890224,2454.6,2454.5,11.04855209]
[1751449903653,1.17890224,2454.6,2454.5,11.04855209]
[1751449904331,0.97570224,2454.6,2454.5,13.2307673]
[1751449907363,0.97570224,2454.6,2454.5,15.2187673]
[1751449908672,0.97570224,2454.6,2454.5,6.6687673]
[1751449909037,0.97570224,2454.6,2454.5,13.83325209]
[1751449917644,0.97570224,2454.6,2454.5,5.28325209]
[1751449917844,0.97570224,2454.6,2454.5,13.83325209]
[1751449918890,0.97570224,2454.6,2454.5,5.28325209]
[1751449919081,0.97570224,2454.6,2454.5,13.83325209]
[1751449923091,0.97570224,2454.6,2454.5,4.48655209]
[1751449923390,0.97570224,2454.6,2454.5,13.03555209]
[1751449924279,0.97570224,2454.6,2454.5,4.48655209]
[1751449924591,0.97570224,2454.6,2454.5,13.03555209]
[1751449928501,0.97570224,2454.6,2454.5,13.03455209]
[1751449929002,0.97570224,2454.6,2454.5,11.04655209]
[1751449932272,0.97570224,2454.6,2454.5,0.02]
[1751449932476,2.81890897,2454.6,2454.5,6.58]
[1751449933012,2.81890897,2454.6,2454.5,0.02]
[1751449933212,2.81890897,2454.6,2454.5,6.58]
[1751449934318,2.81890897,2454.6,2454.5,0.02]
[1751449934616,2.81890897,2454.6,2454.5,6.58]
[1751449935287,2.81890897,2454.6,2454.5,0.02]
[1751449935470,2.81890897,2454.6,2454.5,6.58]
[1751449935807,4.04107402,2454.6,2454.5,6.58]
[1751449936376,4.04107402,2454.6,2454.5,11.04655209]
[1751449937207,2.81890897,2454.6,2454.5,11.04655209]
[1751449938985,4.04107402,2454.6,2454.5,11.04655209]
[1751449939305,2.81890897,2454.6,2454.5,11.04655209]
[1751449944279,2.05140897,2454.6,2454.5,11.04655209]
[1751449944481,1.72890224,2454.6,2454.5,11.04655209]
[1751449947497,1.17890224,2454.6,2454.5,11.04655209]
[1751449948985,0.97570224,2454.6,2454.5,11.04655209]
[1751449961422,0.97570224,2454.6,2454.5,0.02]
[1751449961634,0.97570224,2454.6,2454.5,13.03355209]
[1751449962529,0.97570224,2454.6,2454.5,4.48655209]
[1751449962997,0.97570224,2454.6,2454.5,13.03355209]
[1751449969011,0.97570224,2454.6,2454.5,6.47455209]
[1751449969216,0.97570224,2454.6,2454.5,13.03255209]
[1751449971227,0.97570224,2454.6,2454.5,14.4351973]
[1751449976636,1.42536505,2454.9,2454.5,14.4351973]
[1751449976836,0.9783827,2454.8,2454.5,8.566]
[1751449977006,0.9783827,2454.7,2454.5,8.566]
[1751449977205,1.42536505,2454.9,2454.5,8.566]
[1751449977206,0.9783827,2454.6,2454.5,8.566]
[1751449977411,1.22216505,2454.9,2454.5,23.42804952]
[1751449977608,0.97840317,2454.8,2454.7,10.0]
[1751449977840,0.97840317,2454.8,2454.7,16.7612]
[1751449978036,0.97840317,2454.8,2454.7,21.22775209]
[1751449978236,0.97840317,2454.8,2454.7,14.66975209]
[1751449978441,0.97840317,2454.8,2454.7,13.01255209]
[1751449979360,0.97840317,2454.8,2454.7,4.46655209]
[1751449979538,1.75090317,2454.8,2454.7,13.01255209]
[1751449980034,1.75090317,2454.8,2454.7,4.46655209]
[1751449980345,1.75090317,2454.8,2454.7,13.01255209]
[1751449981340,1.75090317,2454.8,2454.7,4.46655209]
[1751449981542,1.75090317,2454.8,2454.7,13.01255209]
[1751449984573,0.7725,2454.8,2454.7,13.01255209]
[1751449985455,0.7725,2454.8,2454.7,13.01155209]
[1751449986933,0.7725,2454.8,2454.7,13.01055209]
[1751449987153,0.9757,2454.8,2454.7,13.01055209]
[1751449988329,0.9757,2454.8,2454.6,1.987]
[1751449988539,1.3224,2454.6,2454.5,2.007]
[1751449988749,1.5256,2454.6,2454.5,8.564]
[1751449989624,2.50355947,2454.6,2454.5,8.564]
[1751449990437,2.50355947,2454.6,2454.5,13.03055209]
[1751449998973,2.50355947,2454.6,2454.5,4.48655209]
[1751449999172,2.50355947,2454.6,2454.5,11.04355209]
[1751449999376,2.50355947,2454.6,2454.5,4.48655209]
[1751449999574,3.725912,2454.6,2454.5,11.04355209]
[1751449999749,2.50355947,2454.6,2454.5,11.04355209]
[1751450000463,2.50355947,2454.6,2454.5,11.04455209]
[1751450000668,3.725912,2454.6,2454.5,11.04455209]
[1751450002186,2.50355947,2454.6,2454.5,11.04455209]
[1751450002394,1.18115947,2454.6,2454.5,11.04455209]
[1751450002551,0.97795947,2454.6,2454.5,12.3497073]
[1751450003172,0.97795947,2454.6,2454.5,12.5529073]
[1751450003855,0.97795947,2454.6,2454.5,14.46496202]
[1751450004045,0.01,2454.8,2454.5,14.46496202]
[1751450004254,0.01,2454.8,2454.7,6.37860681]
[1751450004482,0.98668114,2454.8,2454.7,14.38310301]
[1751450007050,0.98668114,2454.8,2454.7,15.21430301]
[1751450008177,0.01,2454.8,2454.7,15.21430301]
[1751450008568,1.3473,2454.8,2454.5,0.2232]
[1751450008887,2.55965253,2454.6,2454.5,0.02]
[1751450009087,3.53638609,2454.6,2454.5,0.02]
[1751450009465,4.05398004,2454.6,2454.5,0.02]
[1751450010595,2.83162751,2454.6,2454.5,0.02]
[1751450013961,4.46118091,2454.6,2454.5,0.02]
[1751450014890,2.83162751,2454.6,2454.5,0.02]
[1751450016077,5.27595761,2454.6,2454.5,0.02]
[1751450019108,15.27595761,2454.6,2454.5,0.02]
[1751450021094,15.27173093,2454.6,2454.5,0.02]
[1751450024168,12.83162751,2454.6,2454.5,0.02]
[1751450024768,14.45737102,2454.6,2454.5,0.02]
[1751450024968,12.83162751,2454.6,2454.5,0.02]
[1751450026905,12.8302171,2454.6,2454.5,0.02]
[1751450027110,14.45573434,2454.6,2454.5,0.02]
[1751450027287,14.46573434,2454.6,2454.5,0.02]
[1751450030072,12.8402171,2454.6,2454.5,0.02]
[1751450036293,15.28032052,2454.6,2454.5,0.02]
[1751450038283,12.8402171,2454.6,2454.5,0.02]
[1751450043279,0.2032,2454.5,2454.4,0.02]
[1751450043490,3.62498443,2454.5,2454.4,0.02]
[1751450043688,5.83287227,2454.5,2454.4,0.02]
[1751450043886,3.62498443,2454.5,2454.4,0.02]
[1751450045286,1.17852315,2454.5,2454.4,0.02]
[1751450046515,3.62568962,2454.5,2454.4,0.02]
[1751450048513,1.17852315,2454.5,2454.4,0.02]
[1751450051012,1.72852315,2454.5,2454.4,0.02]
[1751450051236,11.40754807,2454.5,2454.4,0.02]
[1751450052826,21.40754807,2454.5,2454.4,0.02]
[1751450052989,1.3257,2453.9,2453.6,2.021]
[1751450053190,2.19874921,2453.8,2453.6,2.021]
[1751450053514,2.95693475,2453.9,2453.6,2.021]
[1751450053515,2.19874921,2453.7,2453.6,2.021]
[1751450053711,2.74874921,2453.7,2453.6,2.021]
[1751450054889,2.74874921,2453.7,2453.6,0.02]
[1751450056398,2.79372155,2453.7,2453.6,0.02]
[1751450057220,4.42258724,2453.7,2453.6,0.02]
[1751450058423,14.42258724,2453.7,2453.6,0.02]
[1751450058818,12.79372155,2453.7,2453.6,0.02]
[1751450061095,14.42012112,2453.7,2453.6,0.02]
[1751450063429,13.58972112,2453.7,2453.6,0.02]
[1751450065195,11.96332155,2453.7,2453.6,0.02]
[1751450070933,11.96283564,2453.7,2453.6,0.02]
[1751450075219,13.58923521,2453.7,2453.6,0.02]
[1751450079218,11.96283564,2453.7,2453.6,0.02]
[1751450079740,13.59020135,2453.7,2453.6,0.02]
[1751450079941,11.96283564,2453.7,2453.6,0.02]
[1751450080532,21.00168776,2453.7,2453.6,0.02]
[1751450083131,18.55483564,2453.7,2453.6,0.02]
[1751450086155,0.7532,2453.6,2453.5,0.02]
[1751450086453,3.6588408,2453.6,2453.5,0.02]
[1751450090856,6.10736399,2453.6,2453.5,0.02]
[1751450094239,3.6588408,2453.6,2453.5,0.02]
[1751450097059,6.10740195,2453.6,2453.5,0.02]
[1751450099762,6.10629056,2453.6,2453.5,0.02]
[1751450100663,3.65772941,2453.6,2453.5,0.02]
[1751450101479,4.48722941,2453.6,2453.4,0.02]
[1751450101679,7.71258482,2453.5,2453.4,0.02]
[1751450101833,30.14630444,2453.5,2453.4,0.02]
[1751450102034,0.55,2452.8,2452.7,0.02]
[1751450102349,1.52483724,2452.8,2452.7,0.02]
[1751450103767,2.74843153,2452.8,2452.7,0.02]
[1751450105255,1.52483724,2452.8,2452.7,0.02]
[1751450106135,0.97483724,2452.8,2452.7,0.02]
[1751450106347,1.17803724,2452.8,2452.7,0.8033]
[1751450106763,1.72803724,2452.8,2452.7,0.8033]
[1751450107087,2.95163153,2452.8,2452.7,0.8033]
[1751450107273,1.72803724,2452.8,2452.7,0.8033]
[1751450107979,1.17803724,2452.8,2452.7,0.8033]
[1751450108278,1.17803724,2452.8,2452.7,1.5267826]
[1751450108861,1.17803724,2452.8,2452.7,0.8033]
[1751450110180,1.17803724,2452.8,2452.7,0.02]
[1751450110358,1.72803724,2452.8,2452.7,0.02]
[1751450112861,2.55813724,2452.8,2452.7,0.02]
[1751450113176,13.78173153,2452.8,2452.7,0.02]
[1751450113383,14.7386089,2452.8,2452.7,0.02]
[1751450114150,15.95908147,2452.8,2452.7,0.02]
[1751450114358,15.12898147,2452.8,2452.7,0.02]
[1751450115556,5.12898147,2452.8,2452.7,0.02]
[1751450116454,14.6971089,2452.8,2452.7,0.02]
[1751450123204,16.3233286,2452.8,2452.7,0.02]
[1751450123598,14.6971089,2452.8,2452.7,0.02]
[1751450126304,17.14429748,2452.8,2452.7,0.02]
[1751450128710,19.9525064,2452.8,2452.7,0.02]
[1751450129077,18.32603724,2452.8,2452.7,0.02]
[1751450131008,1.72803724,2452.8,2452.7,0.02]
[1751450131208,8.32603724,2452.8,2452.7,0.02]
[1751450133117,8.32503724,2452.8,2452.7,0.02]
[1751450134408,10.77222582,2452.8,2452.7,0.02]
[1751450134611,8.32503724,2452.8,2452.7,0.02]
[1751450136319,1.72803724,2452.8,2452.7,0.02]
[1751450138205,2.80686079,2452.8,2452.7,0.8215]
[1751450139019,1.17803724,2452.8,2452.7,0.8215]
[1751450140013,2.80686079,2452.8,2452.7,0.8215]
[1751450143924,1.83202355,2452.8,2452.7,0.8215]
[1751450144092,0.2032,2452.8,2452.7,0.8215]
[1751450145406,1.18088813,2452.8,2452.7,0.8215]
[1751450152910,0.97768813,2452.8,2452.7,1.5671226]
[1751450153126,1.62948021,2453.3,2452.8,0.8177]
[1751450153127,1.42531016,2453.2,2452.8,0.8177]
[1751450153333,0.97663646,2453.1,2452.8,7.20922603]
[1751450153539,0.97663646,2453.0,2452.8,9.21522603]
[1751450153713,0.2032,2453.2,2452.9,1.01840486]
[1751450153912,0.97668222,2453.1,2452.7,1.0409]
[1751450154117,0.97668222,2453.0,2452.7,1.0409]
[1751450154317,0.97668222,2452.9,2452.7,0.8377]
[1751450154639,0.2032,2453.0,2452.7,0.8377]
[1751450154943,0.97651699,2452.9,2452.7,0.8377]
[1751450155239,0.2032,2453.0,2452.7,0.8377]
[1751450155446,0.97643086,2452.9,2452.7,0.8377]
[1751450155633,0.2032,2453.0,2452.7,0.8377]
[1751450155834,0.97639855,2452.9,2452.7,0.8377]
[1751450156030,0.2032,2453.0,2452.7,0.8377]
[1751450156215,0.97635669,2452.9,2452.7,0.8377]
[1751450156416,0.97635669,2452.8,2452.7,0.8377]
[1751450157848,0.97635669,2452.8,2452.7,1.7855426]
[1751450160271,0.97635669,2452.8,2452.7,0.02]
[1751450161561,0.97635669,2452.8,2452.7,0.7792]
[1751450169887,0.97635669,2452.8,2452.7,0.02]
[1751450170182,2.32635669,2452.8,2452.7,0.02]
[1751450170340,3.9558369,2452.8,2452.7,0.02]
[1751450170541,5.23499522,2452.8,2452.7,0.02]
[1751450171282,4.76926739,2452.8,2452.7,0.02]
[1751450174986,14.76926739,2452.8,2452.7,0.02]
[1751450175357,12.32635669,2452.8,2452.7,0.02]
[1751450179108,14.76493413,2452.8,2452.7,0.02]
[1751450184698,21.36793413,2452.8,2452.7,0.02]
[1751450185819,24.17387206,2452.8,2452.7,0.02]
[1751450189831,24.17387206,2452.8,2452.1,2.014]
[1751450189832,0.55,2452.3,2451.3,0.01]
[1751450190049,17.69402603,2451.8,2451.3,0.01]
[1751450190337,25.33638272,2451.8,2451.3,0.01]
[1751450190512,30.54996318,2451.8,2451.3,0.01]
[1751450191408,28.11138574,2451.8,2451.3,0.01]
[1751450191609,17.49243715,2451.8,2451.3,0.01]
[1751450191794,21.72085971,2451.8,2451.3,0.01]
[1751450194423,23.34093913,2451.8,2451.3,0.01]
[1751450196904,16.67393913,2451.8,2451.3,0.01]
[1751450197109,23.33693913,2451.8,2451.3,0.8395]
[1751450197309,23.33693913,2451.8,2451.6,0.01]
[1751450201234,16.67393913,2451.8,2451.6,0.01]
[1751450201441,23.33793913,2451.8,2451.6,0.01]
[1751450202341,22.58543913,2451.8,2451.6,0.01]
[1751450203133,22.58443913,2451.8,2451.6,0.01]
[1751450203739,11.52386369,2451.8,2451.6,0.01]
[1751450204722,0.97386369,2451.8,2451.7,0.7634]
[1751450205046,10.97386369,2452.0,2451.7,0.7634]
[1751450205229,0.55,2451.9,2451.7,0.7634]
[1751450205542,10.97386369,2452.0,2451.7,0.7634]
[1751450205748,0.55,2451.8,2451.7,0.7634]
[1751450206527,1.52386369,2451.9,2451.7,0.7634]
[1751450207257,0.2032,2451.8,2451.7,0.7634]
[1751450207947,0.2032,2451.8,2451.7,0.01]
[1751450208444,1.72706369,2451.8,2451.7,0.01]
[1751450208618,0.7532,2451.8,2451.7,0.01]
[1751450208816,1.72706369,2451.8,2451.7,0.01]
[1751450209149,0.7532,2451.8,2451.7,0.01]
[1751450210849,1.72706369,2451.8,2451.7,0.01]
[1751450211048,0.7532,2451.8,2451.7,0.01]
[1751450211251,1.72706369,2451.8,2451.7,0.01]
[1751450211430,8.41278415,2451.8,2451.7,0.01]
[1751450211626,8.11858972,2451.8,2451.7,0.01]
[1751450211840,9.33347031,2451.8,2451.7,0.01]
[1751450213657,19.33347031,2451.8,2451.7,0.01]
[1751450214556,18.11858972,2451.8,2451.7,0.01]
[1751450214854,20.75845663,2451.8,2451.7,0.01]
[1751450216351,22.37853605,2451.8,2451.7,0.01]
[1751450218062,23.20873605,2451.8,2451.7,0.01]
[1751450218431,21.58865663,2451.8,2451.7,0.01]
[1751450219138,23.21371022,2451.8,2451.7,0.01]
[1751450219343,21.58865663,2451.8,2451.7,0.01]
[1751450220357,22.65304717,2451.8,2451.7,0.01]
[1751450221538,15.99304717,2451.8,2451.7,0.01]
[1751450221853,22.65304717,2451.8,2451.7,0.01]
[1751450222052,20.01218026,2451.8,2451.7,0.01]
[1751450223148,2.80318026,2451.8,2451.7,0.01]
[1751450223545,2.39669335,2451.8,2451.7,0.01]
[1751450224235,1.17706369,2451.8,2451.7,0.01]
[1751450224635,2.25323946,2451.8,2451.7,0.01]
[1751450224863,4.6918169,2451.8,2451.7,0.01]
[1751450225044,3.35316887,2451.8,2451.7,0.7896]
[1751450226234,3.35316887,2451.8,2451.7,0.01]
[1751450226436,1.72706369,2451.8,2451.7,0.01]
[1751450226866,3.35337951,2451.8,2451.7,0.01]
[1751450227264,4.60197521,2451.8,2451.7,0.01]
[1751450227465,5.41423683,2451.8,2451.7,0.01]
[1751450227946,4.6021802,2451.8,2451.7,0.01]
[1751450228338,2.97565939,2451.8,2451.7,0.01]
[1751450230346,5.41423683,2451.8,2451.7,0.01]
[1751450231173,15.41423683,2451.8,2451.7,0.01]
[1751450232252,12.97565939,2451.8,2451.7,0.01]
[1751450233976,20.89565939,2451.8,2451.7,0.01]
[1751450240368,0.55,2451.7,2451.6,0.01]
[1751450240574,6.77871281,2451.7,2451.6,0.01]
[1751450249383,3.96674687,2451.7,2451.6,0.01]
[1751450250095,3.96674687,2451.7,2451.6,0.8233]
[1751450250294,3.96674687,2451.7,2451.6,0.01]
[1751450250495,8.67768972,2451.7,2451.6,0.01]
[1751450250870,15.33268972,2451.7,2451.6,0.01]
[1751450251068,18.65795869,2451.7,2451.6,0.01]
[1751450252368,17.89565869,2451.7,2451.6,0.01]
[1751450253672,13.94811863,2451.7,2451.6,0.01]
[1751450255098,11.50413266,2451.7,2451.6,0.01]
[1751450255601,13.94848041,2451.7,2451.6,0.01]
[1751450255801,10.62321144,2451.7,2451.6,0.01]
[1751450256503,10.07321144,2451.7,2451.6,0.01]
[1751450256705,7.62886369,2451.7,2451.6,0.01]
[1751450257024,10.62321144,2451.7,2451.6,0.01]
[1751450257412,3.96821144,2451.7,2451.6,0.01]
[1751450257605,24.61831122,2451.7,2451.6,0.01]
[1751450258610,22.17396347,2451.7,2451.6,0.01]
[1751450260510,15.78243744,2451.7,2451.6,0.01]
[1751450260680,21.67313744,2451.7,2451.6,0.01]
[1751450261414,15.01713744,2451.7,2451.6,0.01]
[1751450263687,17.46286032,2451.7,2451.6,0.01]
[1751450264993,15.01713744,2451.7,2451.6,0.01]
[1751450269732,10.2032,2451.6,2451.5,0.01]
[1751450269935,17.24007184,2451.6,2451.5,0.01]
[1751450289831,17.26007184,2451.6,2451.5,0.01]
[1751450294931,14.81585004,2451.6,2451.5,0.01]
[1751450295642,17.26068673,2451.6,2451.5,0.01]
[1751450296461,14.81585004,2451.6,2451.5,0.01]
[1751450301935,21.20737607,2451.6,2451.5,0.01]
[1751450302138,0.55,2451.5,2451.0,0.8315]
[1751450302370,2.18016734,2451.1,2451.0,0.01]
[1751450302537,2.60403103,2451.1,2451.0,0.8334]
[1751450302873,0.97386369,2451.1,2451.0,0.8334]
[1751450304976,1.22228947,2451.5,2451.1,0.7882]
[1751450305278,0.97823003,2451.4,2451.3,0.7882]
[1751450305461,0.97823003,2451.4,2451.3,0.9914]
[1751450305883,0.97823003,2451.4,2451.3,0.2032]
[1751450306190,0.97823003,2451.4,2451.3,0.9955]
[1751450308585,0.97823003,2451.4,2451.3,2.8153]
[1751450309284,0.97823003,2451.4,2451.3,3.11715]
[1751450309758,1.52823003,2451.4,2451.3,0.7923]
[1751450309958,0.2032,2451.3,2451.1,2.8337]
[1751450313805,0.97676789,2451.2,2451.1,2.8337]
[1751450317693,0.97662179,2451.2,2451.1,2.8337]
[1751450318296,0.97662179,2451.2,2451.1,3.11807]
[1751450323206,0.02,2451.4,2451.1,3.11807]
[1751450323376,0.97624577,2451.3,2451.1,3.11807]